bitfinex-derivatives/quotes_SOLF0:USTF0_20250830
["timestamp","ask_amount","ask_price","bid_price","bid_amount"]
[1756534443286,0.03079069,205.84,205.8,7.81]
[1756534443495,8.1673114,205.96,205.75,4.3737]
[1756534443496,2.79343108,205.92,205.81,4.06896134]
[1756534443689,2.79343108,205.92,205.83,11.87896134]
[1756534443996,2.79343108,205.92,205.84,7.81]
[1756534451795,3.58,205.91,205.84,7.81]
[1756534455905,2.79343108,205.92,205.84,7.81]
[1756534457008,6.37343108,205.94,205.84,4.06896134]
[1756534457207,6.37343108,205.94,205.85,7.89]
[1756534460305,10.17,205.98,205.86,4.06896134]
[1756534460506,2.79343108,205.96,205.88,7.89]
[1756534462205,6.36343108,205.96,205.88,7.89]
[1756534463410,3.57,205.92,205.88,7.89]
[1756534463813,3.57,205.92,205.85,7.89]
[1756534465710,6.36343108,205.92,205.85,7.89]
[1756534466014,3.57,205.92,205.85,7.89]
[1756534466210,6.36343108,205.92,205.85,7.89]
[1756534467710,2.79343108,205.92,205.86,7.89]
[1756534473012,2.79343108,205.89,205.84,4.06896134]
[1756534473213,2.79343108,205.89,205.83,7.89]
[1756534476320,2.79343108,205.89,205.78,44.06]
[1756534476321,2.79343108,205.86,205.8,11.95896134]
[1756534476618,2.79343108,205.86,205.8,7.89]
[1756534477415,6.36343108,205.86,205.8,7.89]
[1756534478322,2.79343108,205.83,205.77,7.29]
[1756534484424,3.57,205.82,205.77,7.29]
[1756534484622,6.36343108,205.83,205.77,7.29]
[1756534485426,6.36343108,205.8,205.77,7.29]
[1756534485724,6.36343108,205.8,205.73,7.29]
[1756534488220,3.57,205.73,205.7,4.06896134]
[1756534488423,3.57,205.79,205.69,7.29]
[1756534488727,2.79343108,205.78,205.69,7.29]
[1756534489224,2.79343108,205.78,205.7,7.29]
[1756534490025,2.79343108,205.78,205.71,7.29]
[1756534490528,2.79343108,205.81,205.71,7.29]
[1756534492021,3.57,205.82,205.71,7.29]
[1756534492218,2.79343108,205.8,205.71,7.29]
[1756534493422,2.79343108,205.77,205.71,7.29]
[1756534497627,6.36343108,205.79,205.71,7.29]
[1756534499431,6.36343108,205.79,205.65,31.04528179]
[1756534499432,2.79343108,205.85,205.73,2.79343108]
[1756534499635,2.79343108,205.85,205.74,7.29]
[1756534500938,3.57,205.84,205.74,7.29]
[1756534504836,2.79343108,205.87,205.76,7.29]
[1756534505030,3.57,205.88,205.79,2.79343108]
[1756534505232,3.57,205.88,205.8,7.29]
[1756534505633,2.79343108,205.87,205.8,7.29]
[1756534505937,2.79343108,205.84,205.76,7.29]
[1756534507729,2.79343108,205.87,205.77,7.84]
[1756534507929,3.6,205.89,205.77,7.84]
[1756534508129,2.79343108,205.92,205.8,7.84]
[1756534509132,2.79343108,205.92,205.83,7.84]
[1756534512637,5.44487427,206.02,205.82,2.79343108]
[1756534512638,3.6,205.96,205.86,7.84]
[1756534512842,2.79343108,206.0,205.89,7.84]
[1756534513042,3.6,205.96,205.89,7.84]
[1756534516840,2.79343108,205.94,205.89,7.84]
[1756534517048,3.6,205.93,205.89,7.84]
[1756534517841,3.6,205.93,205.83,4.06896134]
[1756534518043,2.79343108,205.94,205.84,7.84]
[1756534518444,3.6,205.96,205.86,7.84]
[1756534518644,6.39343108,206.0,205.89,7.84]
[1756534518952,0.84524489,206.02,205.91,2.79343108]
[1756534519148,3.6,206.05,205.96,7.84]
[1756534519638,6.39343108,206.05,205.96,7.84]
[1756534520549,3.6,206.05,205.96,7.84]
[1756534520743,2.79343108,206.01,205.9,7.84]
[1756534520942,3.58,206.0,205.9,7.84]
[1756534523247,2.79343108,206.01,205.92,7.84]
[1756534523449,6.37343108,206.04,205.92,7.84]
[1756534523841,2.79343108,206.04,205.92,7.84]
[1756534524046,3.58,206.03,205.92,7.84]
[1756534526855,3.58,206.0,205.92,7.84]
[1756534527150,6.37343108,205.98,205.92,7.84]
[1756534529450,6.37343108,205.98,205.87,7.84]
[1756534529451,2.79343108,205.95,205.87,7.84]
[1756534529850,3.58,205.97,205.87,7.84]
[1756534531863,2.79343108,205.98,205.87,7.84]
[1756534532059,2.79343108,205.93,205.87,7.84]
[1756534532356,2.79343108,205.9,205.81,7.84]
[1756534534056,3.58,205.92,205.81,7.84]
[1756534534057,2.79343108,205.91,205.81,7.84]
[1756534535358,3.58,205.9,205.81,7.84]
[1756534537361,2.79343108,205.88,205.81,7.84]
[1756534538462,3.59,205.87,205.81,7.84]
[1756534538763,3.59,205.87,205.75,7.31]
[1756534539463,2.79343108,205.88,205.75,7.31]
[1756534539662,3.59,205.87,205.75,7.31]
[1756534544264,2.79343108,205.85,205.75,7.31]
[1756534545067,6.38343108,205.85,205.75,7.31]
[1756534545663,3.59,205.84,205.75,7.31]
[1756534545866,2.79343108,205.82,205.75,7.31]
[1756534546868,3.59,205.81,205.75,7.31]
[1756534548363,2.79343108,205.79,205.71,7.31]
[1756534551172,6.38343108,205.79,205.71,7.31]
[1756534554170,2.79343108,205.79,205.71,7.31]
[1756534554376,3.59,205.78,205.71,7.31]
[1756534557475,2.79343108,205.76,205.71,7.31]
[1756534557674,3.59,205.75,205.71,7.31]
[1756534558380,3.59,205.75,205.65,2.79343108]
[1756534558682,3.59,205.75,205.66,7.31]
[1756534559980,2.79343108,205.73,205.66,7.31]
[1756534560172,3.59,205.75,205.66,7.31]
[1756534560379,2.79343108,205.73,205.66,7.31]
[1756534562481,17.34343108,205.88,205.66,7.31]
[1756534562482,6.38343108,205.76,205.66,7.31]
[1756534563383,3.59,205.75,205.66,7.31]
[1756534572880,2.79343108,205.73,205.62,4.04756786]
[1756534573082,2.79343108,205.7,205.62,7.83]
[1756534574189,2.79343108,205.67,205.57,11.87756786]
[1756534574489,2.79343108,205.67,205.58,7.83]
[1756534577984,6.38343108,205.67,205.58,7.83]
[1756534578989,2.79343108,205.64,205.58,7.83]
[1756534579198,2.79343108,205.61,205.54,7.83]
[1756534579385,2.79343108,205.61,205.55,7.83]
[1756534580489,3.58,205.62,205.54,7.83]
[1756534580692,3.58,205.62,205.51,7.83]
[1756534580693,2.79343108,205.59,205.51,7.83]
[1756534581292,2.79343108,205.56,205.49,7.83]
[1756534581490,2.79343108,205.59,205.49,7.83]
[1756534583396,3.58,205.58,205.49,7.83]
[1756534583589,2.79343108,205.59,205.49,7.83]
[1756534584802,2.79343108,205.6,205.49,7.83]
[1756534585804,2.79343108,205.63,205.52,7.83]
[1756534586500,2.79343108,205.57,205.52,7.83]
[1756534586707,3.58,205.56,205.52,7.83]
[1756534589102,3.58,205.56,205.46,7.83]
[1756534591506,2.79343108,205.54,205.46,7.83]
[1756534592409,3.58,205.53,205.46,7.83]
[1756534592914,3.58,205.5,205.46,7.83]
[1756534593311,2.79343108,205.51,205.4,7.83]
[1756534593517,3.58,205.54,205.4,7.83]
[1756534593518,2.79343108,205.52,205.4,7.83]
[1756534594715,6.37343108,205.52,205.4,7.83]
[1756534594912,2.79343108,205.49,205.4,7.83]
[1756534595110,6.37343108,205.52,205.41,7.83]
[1756534595311,2.79343108,205.54,205.41,7.83]
[1756534595717,2.79343108,205.54,205.43,7.83]
[1756534597216,3.58,205.55,205.43,7.83]
[1756534597417,2.79343108,205.53,205.43,7.83]
[1756534599318,2.79343108,205.53,205.44,4.3803]
[1756534599518,2.79343108,205.53,205.45,7.22]
[1756534600913,3.61,205.59,205.47,2.79343108]
[1756534601118,3.61,205.59,205.48,7.22]
[1756534602512,3.61,205.59,205.49,7.22]
[1756534606824,3.61,205.59,205.49,10.01343108]
[1756534607422,3.61,205.56,205.49,7.22]
[1756534612628,2.79343108,205.58,205.44,7.22]
[1756534612629,3.61,205.54,205.44,7.22]
[1756534612827,6.40343108,205.52,205.44,7.22]
[1756534613729,3.61,205.52,205.44,7.22]
[1756534621328,20.2,205.6,205.48,7.22]
[1756534621534,6.40343108,205.59,205.5,2.79343108]
[1756534621832,6.40343108,205.59,205.51,7.22]
[1756534622534,3.61,205.59,205.51,7.22]
[1756534625034,3.61,205.59,205.51,11.28807034]
[1756534625434,3.61,205.63,205.54,7.22]
[1756534627542,3.6,205.61,205.54,7.22]
[1756534629138,33.44,205.67,205.54,7.22]
[1756534629139,36.56,205.64,205.54,7.22]
[1756534629538,3.6,205.64,205.56,2.79343108]
[1756534629732,3.6,205.64,205.57,7.25]
[1756534631239,3.6,205.67,205.57,7.25]
[1756534632935,2.79343108,205.68,205.57,7.25]
[1756534633133,3.6,205.64,205.57,7.25]
[1756534634243,3.6,205.64,205.53,14.11150142]
[1756534634750,2.79343108,205.65,205.53,10.04343108]
[1756534634939,3.6,205.61,205.53,7.25]
[1756534635444,3.6,205.58,205.53,7.25]
[1756534635645,3.6,205.58,205.5,11.31807034]
[1756534635944,3.6,205.58,205.5,7.25]
[1756534636244,6.39343108,205.56,205.5,7.25]
[1756534638541,6.39343108,205.56,205.47,7.25]
[1756534640344,2.79343108,205.48,205.37,7.25]
[1756534640545,3.62,205.47,205.37,7.25]
[1756534640742,6.41343108,205.47,205.38,7.25]
[1756534640943,2.79343108,205.47,205.38,7.25]
[1756534641650,3.65959612,205.46,205.38,7.25]
[1756534641852,2.79343108,205.47,205.38,7.25]
[1756534642050,3.65943561,205.46,205.38,7.25]
[1756534642344,2.79343108,205.47,205.38,7.25]
[1756534642549,3.65802251,205.46,205.38,7.25]
[1756534642852,2.79343108,205.47,205.38,7.25]
[1756534646453,2.79343108,205.45,205.38,7.25]
[1756534646643,79.88,205.53,205.38,7.25]
[1756534646847,2.79343108,205.43,205.32,7.25]
[1756534647046,2.79343108,205.43,205.32,2.79343108]
[1756534647243,3.62,205.42,205.31,7.25]
[1756534647448,2.79343108,205.42,205.31,7.25]
[1756534648157,3.62,205.47,205.31,7.25]
[1756534648654,2.79343108,205.44,205.31,7.25]
[1756534649248,3.62,205.47,205.31,7.25]
[1756534649447,2.79343108,205.42,205.31,7.25]
[1756534650153,3.62,205.44,205.31,7.25]
[1756534650348,2.79343108,205.43,205.31,7.25]
[1756534651753,2.79343108,205.43,205.32,7.25]
[1756534651955,2.79343108,205.43,205.34,7.25]
[1756534652748,3.62,205.48,205.34,7.25]
[1756534652954,3.62,205.48,205.36,2.79343108]
[1756534652955,2.79343108,205.47,205.36,2.79343108]
[1756534653154,2.79343108,205.47,205.37,7.25]
[1756534654956,3.62,205.48,205.37,7.25]
[1756534655150,6.41343108,205.48,205.37,7.25]
[1756534655550,6.41343108,205.48,205.37,10.04343108]
[1756534655758,6.41343108,205.48,205.38,7.25]
[1756534660559,2.79343108,205.42,205.29,7.29]
[1756534660762,2.79343108,205.42,205.31,2.79343108]
[1756534660966,3.62,205.41,205.32,7.29]
[1756534661156,2.79343108,205.38,205.32,7.29]
[1756534661357,3.62,205.38,205.32,7.29]
[1756534667763,3.62,205.53,205.32,7.29]
[1756534667962,2.79343108,205.41,205.32,7.29]
[1756534669162,2.79343108,205.4,205.32,7.29]
[1756534673070,6.41343108,205.4,205.32,7.29]
[1756534679778,14.74,205.44,205.32,7.29]
[1756534679779,3.62,205.36,205.32,7.29]
[1756534680378,3.62,205.36,205.27,7.29]
[1756534681475,2.79343108,205.4,205.29,2.79343108]
[1756534681676,2.79343108,205.41,205.3,7.29]
[1756534684178,3.62,205.42,205.3,7.29]
[1756534684377,6.41343108,205.42,205.3,7.29]
[1756534684880,2.79343108,205.5,205.33,7.29]
[1756534685078,2.79343108,205.45,205.33,7.29]
[1756534685279,3.62,205.44,205.33,7.29]
[1756534685680,3.62,205.44,205.33,2.79343108]
[1756534685880,3.62,205.44,205.34,7.29]
[1756534687784,6.41343108,205.44,205.34,7.29]
[1756534689183,3.61,205.4,205.34,7.29]
[1756534699296,6.40343108,205.43,205.34,7.29]
[1756534700293,3.61,205.43,205.34,7.29]
[1756534700593,2.79343108,205.42,205.34,7.29]
[1756534705593,2.79343108,205.46,205.37,7.41]
[1756534705792,3.61,205.47,205.37,11.50017954]
[1756534705995,3.61,205.47,205.39,7.41]
[1756534710894,78.21652495,205.51,205.41,7.41]
[1756534711097,78.21652495,205.51,205.42,7.41]
[1756534712402,3.61,205.51,205.42,7.41]
[1756534713695,450.98,205.55,205.42,7.41]
[1756534713696,2.79343108,205.5,205.42,7.41]
[1756534713901,3.61,205.49,205.42,7.41]
[1756534722902,3.59,205.5,205.42,7.41]
[1756534723100,2.79343108,205.51,205.42,7.41]
[1756534723602,3.59,205.5,205.42,7.41]
[1756534723801,65.67343108,205.51,205.42,7.41]
[1756534724299,3.59,205.5,205.42,7.41]
[1756534724602,65.67343108,205.51,205.42,7.41]
[1756534725106,3.59,205.5,205.42,7.41]
[1756534731810,2.79343108,205.52,205.42,7.41]
[1756534732008,3.59,205.54,205.46,2.79343108]
[1756534732310,3.59,205.53,205.47,7.86]
[1756534733712,2.79343108,205.54,205.47,7.86]
[1756534733909,3.59,205.56,205.47,7.86]
[1756534736411,6.38343108,205.56,205.47,7.86]
[1756534741507,2.79343108,205.56,205.48,7.86]
[1756534741711,3.59,205.52,205.48,7.86]
[1756534742014,3.59,205.52,205.43,7.86]
[1756534745012,6.38343108,205.52,205.43,7.86]
[1756534745713,3.59,205.52,205.43,7.86]
[1756534745907,2.79343108,205.54,205.43,7.86]
[1756534746413,2.79343108,205.54,205.46,7.86]
[1756534746614,3.59,205.55,205.46,7.86]
[1756534747210,2.79343108,205.57,205.48,2.79343108]
[1756534747414,2.79343108,205.57,205.49,7.77]
[1756534749010,3.61,205.56,205.49,7.77]
[1756534752418,2.79343108,205.57,205.49,7.77]
[1756534752616,3.61,205.59,205.49,7.77]
[1756534756822,91.43343108,205.6,205.49,7.77]
[1756534757022,3.61,205.59,205.49,7.77]
[1756534758318,2.79343108,205.58,205.49,7.77]
[1756534758823,3.61,205.59,205.49,7.77]
[1756534759024,6.40343108,205.59,205.49,7.77]
[1756534759325,2.79343108,205.6,205.49,7.77]
[1756534759524,2.79343108,205.57,205.51,7.77]
[1756534759725,6.41343108,205.57,205.51,7.77]
[1756534760425,3.62,205.56,205.47,7.77]
[1756534760729,6.41343108,205.54,205.47,7.77]
[1756534765427,3.62,205.5,205.47,7.77]
[1756534765628,3.62,205.5,205.42,7.77]
[1756534767031,2.79343108,205.51,205.42,7.77]
[1756534768738,3.62,205.53,205.42,7.77]
[1756534768739,23.75343108,205.55,205.43,7.77]
[1756534769140,2.79343108,205.55,205.45,7.77]
[1756534769337,2.79343108,205.58,205.46,7.77]
[1756534769641,2.79343108,205.58,205.48,7.77]
[1756534770541,47.71343108,205.59,205.48,7.77]
[1756534770838,47.71343108,205.59,205.49,7.77]
[1756534772439,3.62,205.58,205.49,7.77]
[1756534772742,3.62,205.52,205.45,7.77]
[1756534775838,3.62,205.49,205.45,7.77]
[1756534776439,2.79343108,205.5,205.45,7.77]
[1756534776743,3.62,205.49,205.42,7.77]
[1756534780245,2.79343108,205.5,205.42,7.77]
[1756534780640,3.61,205.49,205.42,7.77]
[1756534781334,2.79343108,205.5,205.42,7.77]
[1756534781533,21.65,205.53,205.42,7.77]
[1756534781743,2.79343108,205.5,205.42,7.77]
[1756534788145,3.61,205.51,205.42,7.77]
[1756534788345,2.79343108,205.54,205.44,2.79343108]
[1756534788541,2.79343108,205.54,205.45,7.27]
[1756534788743,2.79343108,205.57,205.46,7.27]
[1756534790546,2.79343108,205.57,205.48,7.27]
[1756534791142,3.61,205.58,205.48,7.27]
[1756534791538,3.61,205.58,205.5,2.79343108]
[1756534791747,2.79343108,205.59,205.51,7.27]
[1756534792540,3.61,205.58,205.51,7.27]
[1756534797956,85.39,205.61,205.51,7.27]
[1756534799051,3.61,205.6,205.51,7.27]
[1756534799251,2.79343108,205.59,205.51,7.27]
[1756534800556,3.61,205.6,205.51,7.27]
[1756534810363,2.79343108,205.63,205.53,7.57]
[1756534810659,3.6,205.64,205.53,7.57]
[1756534811459,2.79343108,205.63,205.53,7.57]
[1756534811759,3.6,205.62,205.53,7.57]
[1756534812354,2.79343108,205.63,205.53,7.57]
[1756534812560,3.6,205.59,205.53,7.57]
[1756534813564,6.39343108,205.57,205.47,4.08158351]
[1756534813756,6.39343108,205.57,205.46,2.79343108]
[1756534813757,6.39343108,205.57,205.48,7.57]
[1756534817769,3.6,205.57,205.48,7.57]
[1756534824978,3.6,205.54,205.48,7.57]
[1756534830979,3.6,205.51,205.44,7.57]
[1756534834278,14.76,205.54,205.44,7.57]
[1756534834480,3.6,205.57,205.44,7.57]
[1756534834778,2.79343108,205.55,205.47,7.57]
[1756534835576,2.79343108,205.56,205.47,7.57]
[1756534837074,2.79343108,205.56,205.48,7.25]
[1756534837578,46.84,205.58,205.48,7.25]
[1756534838878,46.84,205.58,205.49,2.79343108]
[1756534839077,46.84,205.58,205.5,7.25]
[1756534839574,78.08727111,205.61,205.5,7.25]
[1756534839773,2.79343108,205.64,205.53,7.25]
[1756534840080,327.96666383,205.66,205.53,7.25]
[1756534840081,3.6,205.6,205.53,7.25]
[1756534840776,3.6,205.57,205.5,4.091009]
[1756534840978,3.6,205.57,205.45,8.13792269]
[1756534840979,3.6,205.54,205.48,4.091009]
[1756534841282,3.6,205.54,205.48,7.25]
[1756534841482,6.39343108,205.58,205.48,7.25]
[1756534841679,2.79343108,205.57,205.48,7.25]
[1756534843182,3.6,205.56,205.48,7.25]
[1756534847081,2.79343108,205.57,205.49,4.09091636]
[1756534847280,2.79343108,205.57,205.5,7.25]
[1756534848078,6.39343108,205.6,205.5,7.25]
[1756534848282,6.39343108,205.6,205.51,7.25]
[1756534849881,6.39343108,205.6,205.51,10.04343108]
[1756534850185,2.79343108,205.6,205.52,7.25]
[1756534851186,2.79343108,205.63,205.52,7.25]
[1756534851383,92.91343108,205.64,205.53,7.25]
[1756534851583,92.91343108,205.64,205.54,7.25]
[1756534853186,6.39343108,205.64,205.54,7.25]
[1756534853588,6.39343108,205.64,205.55,7.25]
[1756534854083,3.6,205.64,205.55,7.25]
[1756534854785,327.12,205.66,205.56,7.25]
[1756534856184,3.6,205.65,205.56,7.25]
[1756534856794,3.6,205.63,205.56,7.25]
[1756534861787,0.84659174,205.68,205.56,7.25]
[1756534861994,4.44659174,205.68,205.57,7.25]
[1756534862295,3.6,205.68,205.57,7.25]
[1756534864398,3.6,205.68,205.59,2.79343108]
[1756534864695,48.26,205.7,205.6,7.25]
[1756534865290,3.6,205.69,205.6,7.25]
[1756534865691,3.6,205.73,205.63,7.25]
[1756534866592,75.3,205.76,205.63,7.25]
[1756534866593,5.43221064,205.87,205.68,7.25]
[1756534866791,3.6,205.82,205.72,7.25]
[1756534867198,3.6,205.79,205.67,2.79343108]
[1756534867397,3.6,205.79,205.68,7.54]
[1756534868799,0.84587152,205.85,205.67,2.79343108]
[1756534868800,3.6,205.84,205.71,7.54]
[1756534868999,3.6,205.84,205.72,2.79343108]
[1756534869796,3.6,205.84,205.73,7.54]
[1756534870600,10.9593026,205.85,205.73,7.54]
[1756534870798,3.6,205.84,205.73,7.54]
[1756534871206,23.7593026,205.85,205.73,7.54]
[1756534871403,3.6,205.84,205.73,7.54]
[1756534873705,3.6,205.84,205.75,10.33343108]
[1756534874205,3.6,205.84,205.75,7.54]
[1756534874596,3.6,205.84,205.75,10.33343108]
[1756534875412,3.6,205.84,205.76,7.54]
[1756534878008,33.12578928,205.88,205.79,7.54]
[1756534878009,35.88,205.88,205.79,7.54]
[1756534878208,35.88,205.88,205.82,7.54]
[1756534879413,32.28,205.88,205.82,7.54]
[1756534879808,72.46167469,205.91,205.82,7.54]
[1756534880612,72.46167469,205.91,205.82,10.33343108]
[1756534880812,72.46167469,205.91,205.72,2.79343108]
[1756534880813,3.57,205.9,205.79,2.79343108]
[1756534882914,2.79343108,205.88,205.79,2.79343108]
[1756534883117,3.57,205.87,205.78,7.54]
[1756534884717,2.79343108,205.88,205.78,7.54]
[1756534884922,2.79343108,205.79,205.69,7.54]
[1756534885219,3.57,205.78,205.69,7.54]
[1756534885614,3.57,205.75,205.69,7.54]
[1756534885919,3.57,205.75,205.65,7.54]
[1756534886512,3.57,205.72,205.65,7.54]
[1756534890428,2.79343108,205.71,205.65,7.54]
[1756534890724,3.57,205.7,205.59,7.54]
[1756534890914,2.79343108,205.68,205.59,7.54]
[1756534896730,3.57,205.7,205.59,7.54]
[1756534897430,3.6,205.74,205.59,7.54]
[1756534897431,3.58,205.67,205.59,7.54]
[1756534897631,2.79343108,205.65,205.59,7.54]
[1756534898129,3.58,205.64,205.53,7.83]
[1756534898628,2.79343108,205.62,205.53,7.83]
[1756534898831,2.79343108,205.63,205.53,7.83]
[1756534905929,3.58,205.67,205.56,7.83]
[1756534911743,2.79343108,205.65,205.56,7.83]
[1756534911939,3.58,205.64,205.56,7.83]
[1756534912840,2.79343108,205.68,205.56,7.83]
[1756534913038,6.37343108,205.59,205.5,7.83]
[1756534913442,3.58,205.58,205.5,7.83]
[1756534915952,2.79343108,205.56,205.5,7.83]
[1756534916249,6.37343108,205.56,205.5,7.83]
[1756534921654,6.37343108,205.56,205.5,7.83]
[1756534921952,2.79343108,205.56,205.44,7.83]
[1756534922157,3.58,205.55,205.44,7.83]
[1756534922362,2.79343108,205.53,205.44,7.83]
[1756534925255,6.26,205.58,205.44,7.83]
[1756534925256,3.58,205.57,205.44,7.83]
[1756534925458,6.37343108,205.53,205.44,7.83]
[1756534930655,6.39343108,205.57,205.47,7.27]
[1756534930858,2.79343108,205.57,205.47,7.27]
[1756534931059,3.6,205.56,205.47,7.27]
[1756534939358,3.59,205.61,205.49,2.79343108]
[1756534939571,3.59,205.61,205.52,2.79343108]
[1756534939767,3.59,205.61,205.53,7.27]
[1756534940165,2.79343108,205.63,205.53,7.27]
[1756534940362,3.59,205.64,205.55,2.79343108]
[1756534940669,3.59,205.64,205.56,7.27]
[1756534941659,6.38343108,205.68,205.57,2.79343108]
[1756534941865,6.38343108,205.68,205.58,7.27]
[1756534944562,3.59,205.68,205.58,7.27]
[1756534948871,3.59,205.68,205.6,2.79343108]
[1756534949169,3.59,205.68,205.61,7.27]
[1756534950770,3.59,205.72,205.61,7.27]
[1756534950962,3.59,205.72,205.63,2.79343108]
[1756534951166,3.59,205.72,205.64,7.27]
[1756534951567,329.81343108,205.74,205.64,7.27]
[1756534951881,3.59,205.67,205.6,7.27]
[1756534952169,3.59,205.64,205.55,7.27]
[1756534954570,3.59,205.61,205.55,7.27]
[1756534955873,3.59,205.61,205.5,2.79343108]
[1756534956073,3.59,205.61,205.51,7.27]
[1756534959376,6.38343108,205.61,205.51,7.27]
[1756534959676,3.59,205.61,205.51,7.27]
[1756534960776,2.79343108,205.63,205.51,7.27]
[1756534962173,3.6,205.64,205.53,2.79343108]
[1756534962379,3.6,205.64,205.54,7.64]
[1756534966784,3.6,205.69,205.6,7.64]
[1756534970779,3.6,205.69,205.63,7.64]
[1756534973486,3.6,205.73,205.63,7.64]
[1756534973678,3.6,205.72,205.63,7.64]
[1756534974183,2.79343108,205.73,205.63,7.64]
[1756534974388,3.6,205.72,205.63,7.64]
[1756534981194,2.79343108,205.73,205.63,7.64]
[1756534981392,3.6,205.72,205.63,7.64]
[1756534981697,2.79343108,205.73,205.63,7.64]
[1756534982000,3.6,205.72,205.63,7.64]
[1756534982201,2.79343108,205.73,205.63,7.64]
[1756534982402,3.6,205.72,205.63,7.64]
[1756534986399,3.6,205.69,205.63,7.64]
[1756534986606,3.6,205.69,205.51,4.3787]
[1756534986607,2.79343108,205.67,205.6,7.64]
[1756534986794,124.92,205.69,205.6,7.64]
[1756534988506,3.6,205.69,205.6,7.64]
[1756534988702,3.59,205.66,205.6,7.64]
[1756534990100,2.79343108,205.69,205.6,7.64]
[1756534990313,3.59,205.7,205.61,7.69]
[1756534994203,2.79343108,205.75,205.64,7.69]
[1756534994407,36.88,205.74,205.64,7.69]
[1756534995297,3.59,205.73,205.64,7.69]
[1756535001110,2.79343108,205.72,205.64,7.69]
[1756535001306,3.57,205.71,205.64,7.69]
[1756535001510,2.79343108,205.72,205.64,7.69]
[1756535005615,3.57,205.74,205.64,4.0598043]
[1756535005817,3.57,205.77,205.67,7.69]
[1756535007713,109.06847453,205.78,205.67,7.69]
[1756535008016,3.57,205.74,205.67,7.69]
[1756535016025,230.28847453,205.78,205.67,7.69]
[1756535016325,3.57,205.77,205.67,7.69]
[1756535016522,3.57,205.77,205.67,4.0598043]
[1756535016720,124.75,205.77,205.68,7.69]
[1756535018021,3.57,205.77,205.68,7.69]
[1756535020529,2.79343108,205.8,205.7,7.85]
[1756535020530,6.36343108,205.8,205.7,7.85]
[1756535020730,127.52343108,205.8,205.7,7.85]
[1756535022328,3.57,205.8,205.7,7.85]
[1756535022528,326.88,205.81,205.73,7.85]
[1756535022724,3.57,205.83,205.73,7.85]
[1756535024528,3.57,205.83,205.76,7.85]
[1756535026432,121.14,205.86,205.76,7.85]
[1756535026628,124.71,205.86,205.76,7.85]
[1756535026827,121.14,205.86,205.76,7.85]
[1756535027027,3.57,205.85,205.76,7.85]
[1756535042939,326.7,205.95,205.76,7.85]
[1756535043140,88.29343108,205.92,205.81,7.85]
[1756535043346,3.57,205.9,205.81,10.64343108]
[1756535043643,3.57,205.9,205.82,7.85]
[1756535044038,3.57,205.94,205.85,7.85]
[1756535044240,3.57,205.94,205.88,7.85]